[Event "Late-Titled-Tuesday-Blitz-February-20-2024"]
[Site "Chess.com"]
[Date "2024.02.20"]
[Round "3"]
[White "Cambek64"]
[Black "rikchessmx"]
[Result "0-1"]
[WhiteElo "2438"]
[BlackElo "2235"]
[TimeControl "180+1"]
[EndTime "14:27:37 PST"]
[Termination "rikchessmx won on time"]

1. e4 {[%clk 0:02:04.3]} 1... c5 {[%clk 0:02:07.1]} 2. Nf3 {[%clk 0:02:02]} 2...
e6 {[%clk 0:02:08]} 3. c4 {[%clk 0:02:00.9]} 3... Nc6 {[%clk 0:02:06.6]} 4. d4
{[%clk 0:02:01.1]} 4... cxd4 {[%clk 0:02:06.8]} 5. Nxd4 {[%clk 0:02:01.2]} 5...
a6 {[%clk 0:02:07.7]} 6. Nc3 {[%clk 0:02:00.7]} 6... Qc7 {[%clk 0:02:07.6]} 7.
Be3 {[%clk 0:02:00.6]} 7... Nf6 {[%clk 0:02:07.2]} 8. Rc1 {[%clk 0:01:59.1]}
8... Bb4 {[%clk 0:01:55.8]} 9. f3 {[%clk 0:01:58.2]} 9... Ne5 {[%clk 0:01:49.5]}
10. a3 {[%clk 0:01:58.2]} 10... Bc5 {[%clk 0:01:48.3]} 11. b4 {[%clk 0:01:56.2]}
11... Ba7 {[%clk 0:01:48]} 12. Be2 {[%clk 0:01:40]} 12... O-O {[%clk 0:01:45]}
13. c5 {[%clk 0:01:31.5]} 13... Ng6 {[%clk 0:01:36.7]} 14. O-O {[%clk
0:01:27.9]} 14... Nf4 {[%clk 0:01:32.3]} 15. g3 {[%clk 0:01:19.9]} 15... Nxe2+
{[%clk 0:01:30.1]} 16. Qxe2 {[%clk 0:01:20]} 16... d5 {[%clk 0:01:21.7]} 17.
cxd6 {[%clk 0:01:15]} 17... Qxd6 {[%clk 0:01:21.5]} 18. Rfd1 {[%clk 0:01:15.5]}
18... Qe7 {[%clk 0:01:20.2]} 19. e5 {[%clk 0:01:12.4]} 19... Nd7 {[%clk
0:01:14]} 20. f4 {[%clk 0:01:11.4]} 20... f6 {[%clk 0:01:05.3]} 21. exf6 {[%clk
0:01:10.2]} 21... Nxf6 {[%clk 0:01:04.9]} 22. Bf2 {[%clk 0:01:08.9]} 22... Re8
{[%clk 0:01:03]} 23. Nf3 {[%clk 0:00:52.7]} 23... Bxf2+ {[%clk 0:01:00.3]} 24.
Qxf2 {[%clk 0:00:53]} 24... Ng4 {[%clk 0:00:59.8]} 25. Qe2 {[%clk 0:00:51.5]}
25... Bd7 {[%clk 0:00:56.3]} 26. Ng5 {[%clk 0:00:18.2]} 26... Nf6 {[%clk
0:00:50.9]} 27. Re1 {[%clk 0:00:17.2]} 27... h6 {[%clk 0:00:46.8]} 28. Nf3
{[%clk 0:00:17]} 28... Bc6 {[%clk 0:00:46.5]} 29. Ne5 {[%clk 0:00:17.1]} 29...
Bd5 {[%clk 0:00:41.3]} 30. Nxd5 {[%clk 0:00:15.4]} 30... exd5 {[%clk 0:00:41.1]}
31. Rc2 {[%clk 0:00:14.4]} 31... a5 {[%clk 0:00:40.8]} 32. bxa5 {[%clk
0:00:12.9]} 32... Qxa3 {[%clk 0:00:39.2]} 33. Rb1 {[%clk 0:00:12.7]} 33... Ra7
{[%clk 0:00:33.9]} 34. Rcb2 {[%clk 0:00:11.8]} 34... Qc5+ {[%clk 0:00:30.9]} 35.
Kg2 {[%clk 0:00:10.1]} 35... d4 {[%clk 0:00:30]} 36. Rxb7 {[%clk 0:00:09.4]}
36... Rxa5 {[%clk 0:00:29]} 37. Qf3 {[%clk 0:00:07.1]} 37... Ra3 {[%clk
0:00:27.7]} 38. Kh3 {[%clk 0:00:06.5]} 38... Rxf3 {[%clk 0:00:26.3]} 39. Nxf3
{[%clk 0:00:06.3]} 39... Qf5+ {[%clk 0:00:24.7]} 40. Kg2 {[%clk 0:00:05.5]}
40... Re2+ {[%clk 0:00:24.1]} 41. Kf1 {[%clk 0:00:06]} 41... Qc2 {[%clk
0:00:19.7]} 42. Nxd4 {[%clk 0:00:02.3]} 42... Rf2+ {[%clk 0:00:17.7]} 43. Kg1
{[%clk 0:00:02.7]} 43... Rg2+ {[%clk 0:00:17.9]} 44. Kh1 {[%clk 0:00:03.3]}
44... Qe4 {[%clk 0:00:12.3]} 45. Re1 {[%clk 0:00:01.2]} 45... Re2+ {[%clk
0:00:12.1]} 0-1

[Event "Late-Titled-Tuesday-Blitz-February-20-2024"]
[Site "Chess.com"]
[Date "2024.02.20"]
[Round "3"]
[White "ashookk"]
[Black "Navyblue1"]
[Result "1-0"]
[WhiteElo "2416"]
[BlackElo "2186"]
[TimeControl "180+1"]
[EndTime "14:27:37 PST"]
[Termination "ashookk won by resignation"]

1. Nf3 {[%clk 0:03:00.9]} 1... c5 {[%clk 0:02:55.3]} 2. c4 {[%clk 0:02:57.7]}
2... Nc6 {[%clk 0:02:45.8]} 3. d4 {[%clk 0:02:57.1]} 3... cxd4 {[%clk 0:02:44]}
4. Nxd4 {[%clk 0:02:58]} 4... Nf6 {[%clk 0:02:40.2]} 5. Nc3 {[%clk 0:02:57.6]}
5... g6 {[%clk 0:02:38.2]} 6. e4 {[%clk 0:02:57]} 6... Bg7 {[%clk 0:02:35.2]} 7.
Be3 {[%clk 0:02:54.6]} 7... O-O {[%clk 0:02:33.5]} 8. Be2 {[%clk 0:02:53.6]}
8... b6 {[%clk 0:02:24.9]} 9. O-O {[%clk 0:02:52.9]} 9... Bb7 {[%clk 0:02:23.8]}
10. f3 {[%clk 0:02:53.3]} 10... Rc8 {[%clk 0:02:11]} 11. Qd2 {[%clk 0:02:52.2]}
11... Ne8 {[%clk 0:02:00.7]} 12. Rfd1 {[%clk 0:02:45.9]} 12... Nc7 {[%clk
0:01:57.7]} 13. Ndb5 {[%clk 0:02:28.5]} 13... Nxb5 {[%clk 0:01:54.1]} 14. cxb5
{[%clk 0:02:29]} 14... Na5 {[%clk 0:01:47.2]} 15. Qxd7 {[%clk 0:02:16.7]} 15...
Qxd7 {[%clk 0:01:42.2]} 16. Rxd7 {[%clk 0:02:17.6]} 16... Bxc3 {[%clk
0:01:40.4]} 17. bxc3 {[%clk 0:02:18.4]} 17... Rxc3 {[%clk 0:01:40.1]} 18. Bd2
{[%clk 0:01:57.3]} 18... Bc8 {[%clk 0:01:37.2]} 19. Rxa7 {[%clk 0:01:32.3]}
19... Rc2 {[%clk 0:01:23.2]} 20. Bxa5 {[%clk 0:01:32]} 20... bxa5 {[%clk
0:01:17.4]} 21. Bf1 {[%clk 0:01:31.2]} 21... Rd8 {[%clk 0:01:02.9]} 22. Ra8
{[%clk 0:01:26.9]} 22... Kf8 {[%clk 0:01:00.4]} 23. b6 {[%clk 0:01:20.9]} 23...
Rcd2 {[%clk 0:00:57]} 24. Rxa5 {[%clk 0:01:17.6]} 24... Bb7 {[%clk 0:00:55.8]}
25. Ra7 {[%clk 0:01:15.2]} 25... Bc6 {[%clk 0:00:46.5]} 26. a4 {[%clk
0:01:15.2]} 26... Rb2 {[%clk 0:00:38.8]} 27. a5 {[%clk 0:01:10.1]} 27... Rd6
{[%clk 0:00:24.5]} 28. Rc7 {[%clk 0:01:04.8]} 28... f6 {[%clk 0:00:19.3]} 29. a6
{[%clk 0:00:38.3]} 29... Rxb6 {[%clk 0:00:17.7]} 30. a7 {[%clk 0:00:38.9]} 30...
Rd8 {[%clk 0:00:17.8]} 31. Rxc6 {[%clk 0:00:39.2]} 31... Rxc6 {[%clk 0:00:16.5]}
32. a8=Q {[%clk 0:00:39.8]} 32... Rxa8 {[%clk 0:00:16.6]} 33. Rxa8+ {[%clk
0:00:40.2]} 33... Kg7 {[%clk 0:00:17.1]} 34. Ra1 {[%clk 0:00:40.2]} 34... Rc2
{[%clk 0:00:16.9]} 35. Rd1 {[%clk 0:00:39.7]} 35... f5 {[%clk 0:00:14.2]} 36.
exf5 {[%clk 0:00:38.4]} 36... gxf5 {[%clk 0:00:15.1]} 37. Bd3 {[%clk 0:00:38.4]}
37... Rc5 {[%clk 0:00:14.8]} 38. Re1 {[%clk 0:00:38.7]} 38... Kf6 {[%clk
0:00:15]} 39. f4 {[%clk 0:00:37.7]} 39... Rd5 {[%clk 0:00:14.2]} 40. Bf1 {[%clk
0:00:37.2]} 40... Rd6 {[%clk 0:00:14]} 41. g3 {[%clk 0:00:37.7]} 41... Rd2
{[%clk 0:00:13.8]} 42. Bg2 {[%clk 0:00:37.8]} 42... h5 {[%clk 0:00:13.5]} 43. h3
{[%clk 0:00:35.7]} 43... Rd3 {[%clk 0:00:13]} 44. Kh2 {[%clk 0:00:35.2]} 44...
Rd4 {[%clk 0:00:13.7]} 45. Rf1 {[%clk 0:00:35.4]} 45... e6 {[%clk 0:00:12.8]}
46. Rf3 {[%clk 0:00:34.2]} 46... Rd2 {[%clk 0:00:12.6]} 47. Ra3 {[%clk
0:00:33.8]} 47... Re2 {[%clk 0:00:12.5]} 48. h4 {[%clk 0:00:33.4]} 48... Rd2
{[%clk 0:00:12]} 49. Ra8 {[%clk 0:00:29.2]} 49... Rc2 {[%clk 0:00:09.5]} 50. Rg8
{[%clk 0:00:29.4]} 50... Rc7 {[%clk 0:00:07.9]} 51. Rg5 {[%clk 0:00:29.7]} 51...
Rh7 {[%clk 0:00:08]} 52. Bf3 {[%clk 0:00:30.2]} 52... Ra7 {[%clk 0:00:07.7]} 53.
Rxh5 {[%clk 0:00:29.4]} 53... Ra2+ {[%clk 0:00:07.8]} 54. Bg2 {[%clk 0:00:30]}
54... Kg6 {[%clk 0:00:06.7]} 55. Rh8 {[%clk 0:00:30.3]} 55... Kf6 {[%clk
0:00:07.6]} 56. Rb8 {[%clk 0:00:29.7]} 56... Rd2 {[%clk 0:00:06.6]} 57. Rg8
{[%clk 0:00:29.1]} 57... Rd4 {[%clk 0:00:06.1]} 58. h5 {[%clk 0:00:29.1]} 1-0

[Event "Late-Titled-Tuesday-Blitz-February-20-2024"]
[Site "Chess.com"]
[Date "2024.02.20"]
[Round "3"]
[White "only_strong_moves"]
[Black "Zhigalko_Sergei"]
[Result "0-1"]
[WhiteElo "2667"]
[BlackElo "2947"]
[TimeControl "180+1"]
[EndTime "14:27:39 PST"]
[Termination "Zhigalko_Sergei won by checkmate"]

1. e4 {[%clk 0:03:00.9]} 1... c5 {[%clk 0:03:00]} 2. Nf3 {[%clk 0:03:01.4]} 2...
Nc6 {[%clk 0:03:00.6]} 3. d4 {[%clk 0:03:01.4]} 3... cxd4 {[%clk 0:03:01.5]} 4.
Nxd4 {[%clk 0:03:02.3]} 4... Nf6 {[%clk 0:03:02.1]} 5. Nc3 {[%clk 0:03:02.8]}
5... e5 {[%clk 0:03:02.4]} 6. Ndb5 {[%clk 0:03:03.3]} 6... d6 {[%clk 0:03:02.8]}
7. Bg5 {[%clk 0:03:03.9]} 7... a6 {[%clk 0:03:02.7]} 8. Na3 {[%clk 0:03:03.9]}
8... b5 {[%clk 0:03:03.3]} 9. Nd5 {[%clk 0:03:04]} 9... Be7 {[%clk 0:03:03.5]}
10. Bxf6 {[%clk 0:03:04.3]} 10... Bxf6 {[%clk 0:03:04.4]} 11. c3 {[%clk
0:03:02.4]} 11... Bg5 {[%clk 0:03:04.1]} 12. h4 {[%clk 0:03:00.9]} 12... Bh6
{[%clk 0:03:03.6]} 13. g4 {[%clk 0:02:58.4]} 13... Bf4 {[%clk 0:02:56.7]} 14.
Qf3 {[%clk 0:02:57.4]} 14... Be6 {[%clk 0:02:49.6]} 15. Nxf4 {[%clk 0:02:54.3]}
15... Qf6 {[%clk 0:02:47.3]} 16. Nc2 {[%clk 0:02:32.9]} 16... exf4 {[%clk
0:02:42.8]} 17. g5 {[%clk 0:02:33]} 17... Ne5 {[%clk 0:02:13.8]} 18. Qd1 {[%clk
0:02:15.8]} 18... Qe7 {[%clk 0:02:07.6]} 19. Nd4 {[%clk 0:02:14.9]} 19... O-O
{[%clk 0:01:57.7]} 20. Qd2 {[%clk 0:02:03.6]} 20... f3 {[%clk 0:01:38.1]} 21.
Qe3 {[%clk 0:01:27.4]} 21... Bg4 {[%clk 0:01:22.7]} 22. b3 {[%clk 0:00:51.2]}
22... Rac8 {[%clk 0:01:03.7]} 23. Bh3 {[%clk 0:00:50.3]} 23... Qd7 {[%clk
0:00:56.1]} 24. Bxg4 {[%clk 0:00:43.9]} 24... Qxg4 {[%clk 0:00:57]} 25. Kd2
{[%clk 0:00:43.8]} 25... Rc7 {[%clk 0:00:38.1]} 26. Nf5 {[%clk 0:00:35.8]} 26...
Rfc8 {[%clk 0:00:31]} 27. Rag1 {[%clk 0:00:10.8]} 27... Qh5 {[%clk 0:00:31.1]}
28. Qd4 {[%clk 0:00:05.9]} 28... Qg6 {[%clk 0:00:16.6]} 29. h5 {[%clk
0:00:06.2]} 29... Qe6 {[%clk 0:00:16.5]} 30. Rc1 {[%clk 0:00:06.8]} 30... a5
{[%clk 0:00:08]} 31. g6 {[%clk 0:00:06.9]} 31... fxg6 {[%clk 0:00:06.9]} 32.
hxg6 {[%clk 0:00:07.8]} 32... hxg6 {[%clk 0:00:07.8]} 33. Ne3 {[%clk 0:00:07.5]}
33... a4 {[%clk 0:00:06.9]} 34. Nd5 {[%clk 0:00:07.9]} 34... Rb7 {[%clk
0:00:05.3]} 35. Rh4 {[%clk 0:00:04.6]} 35... g5 {[%clk 0:00:03.5]} 36. Rh5
{[%clk 0:00:04.1]} 36... Qg6 {[%clk 0:00:02]} 37. Rch1 {[%clk 0:00:04]} 37...
Kf7 {[%clk 0:00:02.2]} 38. Ne3 {[%clk 0:00:02.9]} 38... axb3 {[%clk 0:00:02.4]}
39. axb3 {[%clk 0:00:02.8]} 39... Rbc7 {[%clk 0:00:01.8]} 40. Nf5 {[%clk
0:00:03.7]} 40... Rd7 {[%clk 0:00:01.6]} 41. Nxd6+ {[%clk 0:00:04.6]} 41... Rxd6
{[%clk 0:00:01.9]} 42. Ke3 {[%clk 0:00:05.3]} 42... Rxd4 {[%clk 0:00:02.5]} 43.
cxd4 {[%clk 0:00:06.2]} 43... Ng4+ {[%clk 0:00:03.1]} 44. Kd2 {[%clk 0:00:07.1]}
44... Nf6 {[%clk 0:00:04]} 45. Ke1 {[%clk 0:00:07.8]} 45... Qxe4+ {[%clk
0:00:04.3]} 46. Kf1 {[%clk 0:00:08.1]} 46... Qe2+ {[%clk 0:00:04.7]} 47. Kg1
{[%clk 0:00:09]} 47... Qe1+ {[%clk 0:00:05.2]} 48. Kh2 {[%clk 0:00:09.9]} 48...
Qxf2+ {[%clk 0:00:06.1]} 49. Kh3 {[%clk 0:00:10.4]} 49... Qg2# {[%clk 0:00:07]}
0-1

[Event "Late-Titled-Tuesday-Blitz-February-20-2024"]
[Site "Chess.com"]
[Date "2024.02.20"]
[Round "3"]
[White "GMRAVEN_ON_YOUTUBE"]
[Black "FairChess_on_YouTube"]
[Result "0-1"]
[WhiteElo "2754"]
[BlackElo "3058"]
[TimeControl "180+1"]
[EndTime "14:27:40 PST"]
[Termination "FairChess_on_YouTube won on time"]

1. f4 {[%clk 0:03:00.9]} 1... b6 {[%clk 0:02:58.5]} 2. e4 {[%clk 0:03:00.5]}
2... Bb7 {[%clk 0:02:58.8]} 3. Nc3 {[%clk 0:03:00.2]} 3... e6 {[%clk 0:02:59.4]}
4. Nf3 {[%clk 0:02:59.1]} 4... d5 {[%clk 0:02:57.9]} 5. exd5 {[%clk 0:02:57.7]}
5... exd5 {[%clk 0:02:58.2]} 6. d4 {[%clk 0:02:56.7]} 6... Nf6 {[%clk
0:02:57.4]} 7. Bb5+ {[%clk 0:02:50.6]} 7... c6 {[%clk 0:02:55.3]} 8. Bd3 {[%clk
0:02:51.1]} 8... Be7 {[%clk 0:02:54.9]} 9. O-O {[%clk 0:02:49.8]} 9... O-O
{[%clk 0:02:55.8]} 10. Ne5 {[%clk 0:01:56.4]} 10... c5 {[%clk 0:02:55.4]} 11.
Qf3 {[%clk 0:01:55.1]} 11... Nc6 {[%clk 0:02:53.1]} 12. Nxc6 {[%clk 0:01:31.1]}
12... Bxc6 {[%clk 0:02:54]} 13. b3 {[%clk 0:01:22.9]} 13... Rc8 {[%clk
0:02:46.7]} 14. Be3 {[%clk 0:01:14.7]} 14... Re8 {[%clk 0:02:43.1]} 15. Rae1
{[%clk 0:01:13.2]} 15... c4 {[%clk 0:02:42.8]} 16. Bf5 {[%clk 0:01:12]} 16...
Bd7 {[%clk 0:02:38.2]} 17. Bxd7 {[%clk 0:01:00.9]} 17... Qxd7 {[%clk 0:02:39.1]}
18. Bd2 {[%clk 0:01:00.7]} 18... Bb4 {[%clk 0:02:36.3]} 19. Re5 {[%clk
0:00:56.1]} 19... Bxc3 {[%clk 0:02:29.7]} 20. Bxc3 {[%clk 0:00:54.6]} 20... Ne4
{[%clk 0:02:30.1]} 21. Bb4 {[%clk 0:00:50.8]} 21... cxb3 {[%clk 0:02:26.4]} 22.
cxb3 {[%clk 0:00:45.1]} 22... Qb5 {[%clk 0:02:24.7]} 23. a3 {[%clk 0:00:18.9]}
23... a5 {[%clk 0:02:24.2]} 24. Be1 {[%clk 0:00:18.8]} 24... f6 {[%clk
0:02:24.1]} 25. Rxe8+ {[%clk 0:00:12.5]} 25... Rxe8 {[%clk 0:02:25]} 26. a4
{[%clk 0:00:11.4]} 26... Qa6 {[%clk 0:02:23.2]} 27. f5 {[%clk 0:00:09]} 27...
Rc8 {[%clk 0:02:22.5]} 28. Bg3 {[%clk 0:00:07]} 28... Rc2 {[%clk 0:02:16.8]} 29.
Re1 {[%clk 0:00:02.7]} 29... Qc8 {[%clk 0:02:15.2]} 30. h4 {[%clk 0:00:02.5]}
30... h6 {[%clk 0:02:15]} 31. Bh2 {[%clk 0:00:02.1]} 31... Rc1 {[%clk
0:02:14.5]} 32. Qf1 {[%clk 0:00:01.1]} 32... Rxe1 {[%clk 0:02:09.3]} 33. Qxe1
{[%clk 0:00:02]} 33... Qxf5 {[%clk 0:02:09.1]} 34. Bc7 {[%clk 0:00:02.7]} 34...
Qe6 {[%clk 0:02:06.6]} 35. Qe3 {[%clk 0:00:02.9]} 35... Qc6 {[%clk 0:02:06.4]}
36. Qf4 {[%clk 0:00:02.9]} 36... Kf7 {[%clk 0:02:01.7]} 37. h5 {[%clk
0:00:02.7]} 37... Qc2 {[%clk 0:01:56.9]} 38. Kh2 {[%clk 0:00:02.9]} 38... Qxb3
{[%clk 0:01:56.3]} 39. Qf5 {[%clk 0:00:02.7]} 39... Ke7 {[%clk 0:01:42.8]} 40.
Qc8 {[%clk 0:00:02.9]} 40... Qxa4 {[%clk 0:01:34.1]} 41. Qd8+ {[%clk 0:00:03.3]}
41... Ke6 {[%clk 0:01:34.6]} 42. Qg8+ {[%clk 0:00:03.3]} 42... Kd7 {[%clk
0:01:33.1]} 43. Qd8+ {[%clk 0:00:03.4]} 43... Ke6 {[%clk 0:01:31.6]} 44. Qg8+
{[%clk 0:00:03.7]} 44... Ke7 {[%clk 0:01:29.1]} 45. Qxg7+ {[%clk 0:00:03.9]}
45... Ke8 {[%clk 0:01:28.2]} 46. Qg8+ {[%clk 0:00:03.9]} 46... Kd7 {[%clk
0:01:28.8]} 47. Qd8+ {[%clk 0:00:04.1]} 47... Ke6 {[%clk 0:01:28.6]} 48. Qg8+
{[%clk 0:00:03.8]} 48... Ke7 {[%clk 0:01:22.7]} 49. Qxd5 {[%clk 0:00:03.9]}
49... Qc2 {[%clk 0:01:15.3]} 50. Qd8+ {[%clk 0:00:04]} 50... Ke6 {[%clk
0:01:15.7]} 51. d5+ {[%clk 0:00:01.9]} 51... Kf5 {[%clk 0:01:15.5]} 52. Qd7+
{[%clk 0:00:02.6]} 52... Kg5 {[%clk 0:01:12.9]} 53. Kh3 {[%clk 0:00:02.4]} 53...
Nf2+ {[%clk 0:01:08]} 54. Kh2 {[%clk 0:00:01.9]} 54... Ng4+ {[%clk 0:01:07.9]}
55. Kh3 {[%clk 0:00:02.5]} 55... Qd3+ {[%clk 0:01:07.5]} 56. Bg3 {[%clk
0:00:02.8]} 56... Nf2+ {[%clk 0:01:05.2]} 57. Kh2 {[%clk 0:00:02.9]} 57... Ng4+
{[%clk 0:01:06.1]} 58. Kh3 {[%clk 0:00:03.5]} 58... Ne5 {[%clk 0:01:01]} 59.
Qg7+ {[%clk 0:00:03.3]} 59... Kxh5 {[%clk 0:01:01.6]} 60. Qxf6 {[%clk
0:00:02.5]} 60... Ng6 {[%clk 0:01:00.8]} 61. d6 {[%clk 0:00:02.2]} 61... a4
{[%clk 0:00:56.3]} 62. d7 {[%clk 0:00:02.6]} 62... Qxd7+ {[%clk 0:00:55.7]} 63.
Kh2 {[%clk 0:00:02.4]} 63... Qd5 {[%clk 0:00:53.4]} 64. Kh3 {[%clk 0:00:02.2]}
64... a3 {[%clk 0:00:52]} 0-1

[Event "Late-Titled-Tuesday-Blitz-February-20-2024"]
[Site "Chess.com"]
[Date "2024.02.20"]
[Round "3"]
[White "MyDream003"]
[Black "BilodeauA"]
[Result "0-1"]
[WhiteElo "2746"]
[BlackElo "3034"]
[TimeControl "180+1"]
[EndTime "14:27:40 PST"]
[Termination "BilodeauA won on time"]

1. d4 {[%clk 0:03:00.9]} 1... d5 {[%clk 0:03:00.4]} 2. c4 {[%clk 0:03:00.8]}
2... dxc4 {[%clk 0:03:01.3]} 3. Nf3 {[%clk 0:03:00.1]} 3... a6 {[%clk
0:03:01.8]} 4. e3 {[%clk 0:02:57.1]} 4... Bg4 {[%clk 0:03:01.9]} 5. Bxc4 {[%clk
0:02:56.2]} 5... e6 {[%clk 0:03:02.5]} 6. h3 {[%clk 0:02:54.2]} 6... Bh5 {[%clk
0:03:02.7]} 7. Nc3 {[%clk 0:02:54]} 7... Nc6 {[%clk 0:03:02.9]} 8. a3 {[%clk
0:02:29.6]} 8... Nf6 {[%clk 0:03:02.8]} 9. g4 {[%clk 0:02:22.4]} 9... Bg6 {[%clk
0:03:02.8]} 10. Nh4 {[%clk 0:02:20.8]} 10... Be7 {[%clk 0:02:45]} 11. Nxg6
{[%clk 0:02:13.4]} 11... hxg6 {[%clk 0:02:45.9]} 12. Bd2 {[%clk 0:02:06.5]}
12... Qd7 {[%clk 0:02:46]} 13. Qe2 {[%clk 0:01:59.3]} 13... Nd5 {[%clk
0:02:44.6]} 14. O-O-O {[%clk 0:01:52.2]} 14... O-O-O {[%clk 0:02:44.1]} 15. Kb1
{[%clk 0:01:46.7]} 15... Kb8 {[%clk 0:02:44.6]} 16. Rc1 {[%clk 0:01:36.1]} 16...
g5 {[%clk 0:02:44.6]} 17. Nxd5 {[%clk 0:01:33.3]} 17... exd5 {[%clk 0:02:44.7]}
18. Bd3 {[%clk 0:01:34]} 18... Rh6 {[%clk 0:02:39.6]} 19. Qd1 {[%clk 0:01:32.8]}
19... Na7 {[%clk 0:02:33.8]} 20. Bf1 {[%clk 0:01:29.8]} 20... Nc8 {[%clk
0:02:29.7]} 21. Bg2 {[%clk 0:01:28.1]} 21... Nb6 {[%clk 0:02:27.1]} 22. Ka2
{[%clk 0:01:18.1]} 22... Nc4 {[%clk 0:02:25.9]} 23. Bc3 {[%clk 0:01:17.2]} 23...
Rb6 {[%clk 0:02:24.3]} 24. Bf1 {[%clk 0:01:10.5]} 24... Qe6 {[%clk 0:02:05.3]}
25. Bxc4 {[%clk 0:01:05.7]} 25... dxc4 {[%clk 0:02:05.2]} 26. Qc2 {[%clk
0:01:02.1]} 26... Rd5 {[%clk 0:01:57.3]} 27. e4 {[%clk 0:00:55.5]} 27... Rdb5
{[%clk 0:01:57.3]} 28. d5 {[%clk 0:00:51.9]} 28... Qd7 {[%clk 0:01:50.5]} 29.
Rhd1 {[%clk 0:00:42.3]} 29... Rb3 {[%clk 0:01:43.1]} 30. Bd4 {[%clk 0:00:17.4]}
30... Bc5 {[%clk 0:01:35.1]} 31. Bxc5 {[%clk 0:00:13.9]} 31... Rxb2+ {[%clk
0:01:35.7]} 32. Qxb2 {[%clk 0:00:14.6]} 32... Rxb2+ {[%clk 0:01:36.4]} 33. Kxb2
{[%clk 0:00:15.5]} 33... Qb5+ {[%clk 0:01:36.9]} 34. Bb4 {[%clk 0:00:16]} 34...
a5 {[%clk 0:01:37.6]} 35. Kc3 {[%clk 0:00:16]} 35... axb4+ {[%clk 0:01:36.3]}
36. axb4 {[%clk 0:00:16.9]} 36... Qa4 {[%clk 0:01:37.1]} 37. Kxc4 {[%clk
0:00:07]} 37... Qa2+ {[%clk 0:01:37.2]} 38. Kc3 {[%clk 0:00:07.2]} 38... Qxf2
{[%clk 0:01:37.8]} 39. Rd3 {[%clk 0:00:04.9]} 39... Qf4 {[%clk 0:01:37.1]} 40.
Re1 {[%clk 0:00:04.2]} 40... Qe5+ {[%clk 0:01:37.6]} 41. Kb3 {[%clk 0:00:03.5]}
41... Ka7 {[%clk 0:01:38.3]} 42. Ree3 {[%clk 0:00:02.9]} 42... Kb6 {[%clk
0:01:38.4]} 43. Kc4 {[%clk 0:00:03.5]} 43... f6 {[%clk 0:01:31.4]} 44. Rc3
{[%clk 0:00:03.6]} 44... Qf4 {[%clk 0:01:25.8]} 45. Rcd3 {[%clk 0:00:04]} 45...
Qf2 {[%clk 0:01:25.5]} 46. Rc3 {[%clk 0:00:04.1]} 46... Qa2+ {[%clk 0:01:25]}
47. Rb3 {[%clk 0:00:03.8]} 47... Ka7 {[%clk 0:01:14.5]} 48. Rd3 {[%clk
0:00:03.8]} 48... Kb8 {[%clk 0:01:14.6]} 49. Re3 {[%clk 0:00:04.1]} 49... Kc8
{[%clk 0:01:14.8]} 50. Kd4 {[%clk 0:00:04.7]} 50... Kd7 {[%clk 0:01:14.8]} 51.
Red3 {[%clk 0:00:04.4]} 51... Kd6 {[%clk 0:01:15.1]} 52. Re3 {[%clk 0:00:04.8]}
52... Qh2 {[%clk 0:01:09]} 53. Kc4 {[%clk 0:00:02.5]} 53... Qc2+ {[%clk
0:01:05.9]} 54. Kd4 {[%clk 0:00:02.9]} 54... b5 {[%clk 0:01:06.6]} 55. Rec3
{[%clk 0:00:01.7]} 55... Qd2+ {[%clk 0:01:03.1]} 56. Rd3 {[%clk 0:00:02.1]}
56... Qc1 {[%clk 0:01:01.3]} 57. Rdc3 {[%clk 0:00:02.6]} 57... Qg1+ {[%clk
0:00:56.5]} 58. Kd3 {[%clk 0:00:03.2]} 58... Ke5 {[%clk 0:00:54]} 59. Rc6 {[%clk
0:00:02.8]} 59... Qd1+ {[%clk 0:00:53.9]} 60. Kc3 {[%clk 0:00:02.7]} 60... Kxe4
{[%clk 0:00:51.9]} 61. Re6+ {[%clk 0:00:02]} 61... Kxd5 {[%clk 0:00:51.6]} 62.
Ra6 {[%clk 0:00:02.3]} 62... Qc1+ {[%clk 0:00:47.1]} 63. Kd3 {[%clk 0:00:02.7]}
63... Qc4+ {[%clk 0:00:47.8]} 0-1

[Event "Late-Titled-Tuesday-Blitz-February-20-2024"]
[Site "Chess.com"]
[Date "2024.02.20"]
[Round "3"]
[White "ferdipy"]
[Black "lluiss"]
[Result "0-1"]
[WhiteElo "2386"]
[BlackElo "2200"]
[TimeControl "180+1"]
[EndTime "14:27:40 PST"]
[Termination "lluiss won on time"]

1. e4 {[%clk 0:00:07.6]} 1... e6 {[%clk 0:02:55.9]} 2. d4 {[%clk 0:00:08.3]}
2... d5 {[%clk 0:02:54.5]} 3. Nc3 {[%clk 0:00:09.2]} 3... Nf6 {[%clk 0:02:53.6]}
4. Bg5 {[%clk 0:00:09.4]} 4... Be7 {[%clk 0:02:48.8]} 5. e5 {[%clk 0:00:09.9]}
5... Nfd7 {[%clk 0:02:48.7]} 6. Bxe7 {[%clk 0:00:10.8]} 6... Qxe7 {[%clk
0:02:48.6]} 7. f4 {[%clk 0:00:11.7]} 7... g6 {[%clk 0:02:31.8]} 8. Nf3 {[%clk
0:00:11.5]} 8... a6 {[%clk 0:02:18.1]} 9. Qd2 {[%clk 0:00:12]} 9... Nc6 {[%clk
0:02:14.9]} 10. O-O-O {[%clk 0:00:12.9]} 10... b6 {[%clk 0:02:15.1]} 11. Kb1
{[%clk 0:00:13.1]} 11... Bb7 {[%clk 0:02:15.2]} 12. g4 {[%clk 0:00:14]} 12...
O-O-O {[%clk 0:02:00.6]} 13. Be2 {[%clk 0:00:14.2]} 13... h5 {[%clk 0:01:58.8]}
14. h3 {[%clk 0:00:14.4]} 14... Kb8 {[%clk 0:01:51.1]} 15. a3 {[%clk 0:00:14.3]}
15... Na5 {[%clk 0:01:46.2]} 16. Na2 {[%clk 0:00:14.8]} 16... Nc4 {[%clk
0:01:45.8]} 17. Qc3 {[%clk 0:00:15.3]} 17... Ka7 {[%clk 0:01:40.8]} 18. Nd2
{[%clk 0:00:14.7]} 18... Nxd2+ {[%clk 0:01:36]} 19. Rxd2 {[%clk 0:00:14.4]}
19... hxg4 {[%clk 0:01:33.1]} 20. Bxg4 {[%clk 0:00:13.3]} 20... a5 {[%clk
0:01:23.5]} 21. b4 {[%clk 0:00:12.4]} 21... axb4 {[%clk 0:01:16.6]} 22. axb4
{[%clk 0:00:13.3]} 22... c5 {[%clk 0:01:11.7]} 23. Qa3+ {[%clk 0:00:12.9]} 23...
Kb8 {[%clk 0:01:10.7]} 24. bxc5 {[%clk 0:00:13.8]} 24... bxc5 {[%clk 0:01:10.1]}
25. Nc3 {[%clk 0:00:14.3]} 25... Nb6 {[%clk 0:00:41.8]} 26. Nb5 {[%clk
0:00:11.8]} 26... Nc4 {[%clk 0:00:41.1]} 27. Qa7+ {[%clk 0:00:11.9]} 27... Kc8
{[%clk 0:00:41.1]} 28. Nd6+ {[%clk 0:00:12.1]} 28... Rxd6 {[%clk 0:00:40.8]} 29.
exd6 {[%clk 0:00:11.5]} 29... Nxd2+ {[%clk 0:00:40.9]} 30. Kc1 {[%clk
0:00:11.1]} 30... Qxd6 {[%clk 0:00:35.7]} 31. Kxd2 {[%clk 0:00:11.1]} 31...
Qxf4+ {[%clk 0:00:35.9]} 32. Kd1 {[%clk 0:00:05.8]} 32... Qxd4+ {[%clk
0:00:34.7]} 33. Kc1 {[%clk 0:00:06.4]} 33... Qc3 {[%clk 0:00:24.2]} 34. Rd1
{[%clk 0:00:06.3]} 34... Qe3+ {[%clk 0:00:24]} 35. Kb1 {[%clk 0:00:06.4]} 35...
Rd8 {[%clk 0:00:20.3]} 36. Rd3 {[%clk 0:00:06.6]} 36... Qe1+ {[%clk 0:00:19.4]}
37. Kb2 {[%clk 0:00:07.1]} 37... Qe5+ {[%clk 0:00:13.6]} 38. Ka2 {[%clk
0:00:07.2]} 38... Rd6 {[%clk 0:00:12.6]} 39. Ra3 {[%clk 0:00:04.4]} 39... Qd4
{[%clk 0:00:10.2]} 40. Qa5 {[%clk 0:00:03.3]} 40... Qc4+ {[%clk 0:00:09.5]} 41.
Kb2 {[%clk 0:00:03.2]} 41... Ra6 {[%clk 0:00:07.7]} 42. Qd2 {[%clk 0:00:01.7]}
42... Rxa3 {[%clk 0:00:07.1]} 0-1